[Event "FIDE Chesscom Online Nations Cup"]
[White "Amin, Bassem"]
[Black "Giri, Anish"]
[Site "Online"]
[Round "5"]
[Annotator "RC"]
[Result "1-0"]
[Date "2020.05.07"]
[WhiteElo "2608"]
[BlackElo "2731"]
[PlyCount "105"]
[TimeControl "1500+10"]

1. e4 {[%emt 0:0:1]} c5 {[%emt 0:0:2]} 2. Nf3 {[%emt 0:0:1]} d6 {[%emt 0:0:0]} 3. g3 {[%emt 0:1:23]} Nf6 {[%emt 0:0:9]} 4. d3 {[%emt 0:0:2]} g6 {[%emt 0:0:8]
} 5. Bg2 {[%emt 0:0:2]} Bg7 {[%emt 0:0:0]} 6. 0-0 {[%emt 0:0:0]} 0-0 {[%emt 0:0:1]} 7. Re1 {[%emt 0:0:5]} Nc6 {[%emt 0:0:6]} 8. c3 {[%emt 0:0:2]} e5 {[%emt 0:0:8]} 9. a3 {[%emt 0:0:4]} b5 {[%emt 0:2:10]} 10. h3 {[%emt 0:0:11]} Rb8 {[%emt 0:0:30]} 11. Be3 {[%emt 0:0:10]} a5 {[%emt 0:2:15]
} 12. a4 {[%emt 0:2:1]} b4 {[%emt 0:0:23]} 13. Nbd2 {[%emt 0:0:0]} h6 {[%emt 0:0:3]} 14. Rc1 {[%emt 0:0:37]} Re8 {[%emt 0:1:3]} 15. d4 {[%emt 0:3:24]} bxc3 {[%emt 0:0:24]} 16. bxc3 {[%emt 0:0:0]} exd4 {[%emt 0:2:56]
} 17. cxd4 {[%emt 0:0:0]} Nb4 {[%emt 0:0:14]} 18. Nc4 {[%emt 0:6:55]
} Nxe4 {[%emt 0:3:19]} 19. dxc5 {[%emt 0:0:6]} Na2 {[%emt 0:0:0]} 20. Nxd6 {[%emt 0:2:38]} Nxd6 {[%emt 0:0:23]} 21. Rc2 {[%emt 0:0:42]
} Bf5 {[%emt 0:7:56]} 22. Rxa2 {[%emt 0:0:53]} Nc4 {[%emt 0:0:2]} 23. Qxd8 {[%emt 0:2:21]} Rbxd8 {[%emt 0:0:23]} 24. c6 {[%emt 0:0:32]} Rc8 {[%emt 0:0:0]} 25. Nd2 {[%emt 0:1:13]} Ne5 {[%emt 0:2:24]} 26. g4 {[%emt 0:0:48]} Nd3 {[%emt 0:1:3]} 27. Rb1 {[%emt 0:0:20]} Be6 {[%emt 0:0:18]} 28. Rc2 {[%emt 0:0:3]
} Nb4 {[%emt 0:0:13]} 29. Rc5 {[%emt 0:0:19]} Ba2 {[%emt 0:0:0]} 30. Rf1 {[%emt 0:1:38]} Bf8 {[%emt 0:0:18]} 31. Rxa5 {[%emt 0:0:27]} Nxc6 {[%emt 0:0:3]} 32. Rb5 {[%emt 0:0:7]} Ne5 {[%emt 0:0:29]} 33. Ra1 {[%emt 0:0:33]
} Bc4 {[%emt 0:0:10]} 34. Nxc4 {[%emt 0:0:7]} Nxc4 {[%emt 0:0:0]} 35. Bd4 {[%emt 0:0:14]} Red8 {[%emt 0:0:11]} 36. Bf6 {[%emt 0:1:7]} Rd6 {[%emt 0:0:2]} 37. g5 {[%emt 0:0:5]} hxg5 {[%emt 0:0:11]} 38. Bxg5 {[%emt 0:0:1]
} Na3 {[%emt 0:0:21]} 39. Rb3 {[%emt 0:0:26]} f6 {[%emt 0:0:0]} 40. Be3 {[%emt 0:1:0]} Nc2 {[%emt 0:0:7]} 41. Rc1 {[%emt 0:0:3]} Rc4 {[%emt 0:0:1]} 42. Bf1 {[%emt 0:0:9]} Rc8 {[%emt 0:0:6]} 43. a5 {[%emt 0:0:0]} Rdc6 {[%emt 0:0:4]} 44. Bb6 {[%emt 0:0:16]} Nb4 {[%emt 0:0:10]} 45. Rxc6 {[%emt 0:0:3]} Rxc6 {[%emt 0:0:0]} 46. a6 {[%emt 0:0:22]} Rc1 {[%emt 0:0:17]
} 47. a7 {[%emt 0:0:19]} Ra1 {[%emt 0:0:1]} 48. Rxb4 {[%emt 0:0:0]} Bxb4 {[%emt 0:0:2]} 49. Kg2 {[%emt 0:0:0]} Bd6 {[%emt 0:0:21]} 50. Bc4+ {[%emt 0:0:4]} Kg7 {[%emt 0:0:14]} 51. Bd5 {[%emt 0:0:0]} Bc7 {[%emt 0:0:6]
} 52. Bd4 {[%emt 0:0:16]} Be5 {[%emt 0:0:1]} 53. Bxa1 {[%emt 0:0:3]
} 1-0

[Event "FIDE Chesscom Online Nations Cup"]
[White "Girya, Olga"]
[Black "Harika, Dronavalli"]
[Site "Online"]
[Round "5"]
[Annotator "ChessBase"]
[Result "1/2-1/2"]
[Date "2020.05.07"]
[WhiteElo "2471"]
[BlackElo "2450"]
[PlyCount "75"]
[TimeControl "1500+10"]

1. d4 {[%emt 0:0:2]} Nf6 {[%emt 0:0:2]} 2. c4 {[%emt 0:0:2]} d6 {[%emt 0:0:0]} 3. Nc3 {[%emt 0:0:20]} e5 {[%emt 0:0:3]} 4. Nf3 {[%emt 0:0:41]} exd4 {[%emt 0:0:2]} 5. Nxd4 {[%emt 0:0:5]} g6 {[%emt 0:0:2]} 6. e4 {[%emt 0:0:12]
} Bg7 {[%emt 0:0:1]} 7. Be2 {[%emt 0:0:3]} 0-0 {[%emt 0:0:0]} 8. 0-0 {[%emt 0:1:8]} Re8 {[%emt 0:0:24]} 9. f3 {[%emt 0:0:42]} Nc6 {[%emt 0:0:2]
} 10. Be3 {[%emt 0:0:31]} Nh5 {[%emt 0:0:3]} 11. Qd2 {[%emt 0:0:0]} Nf4 {[%emt 0:0:33]} 12. Nxc6 {[%emt 0:3:0]} Nxe2+ {[%emt 0:0:4]} 13. Nxe2 {[%emt 0:0:3]} bxc6 {[%emt 0:0:2]} 14. Bd4 {[%emt 0:0:11]} c5 {[%emt 0:1:5]
} 15. Bxg7 {[%emt 0:0:4]} Kxg7 {[%emt 0:0:2]} 16. Nc3 {[%emt 0:0:45]
} Bb7 {[%emt 0:2:12]} 17. Rad1 {[%emt 0:0:16]} Bc6 {[%emt 0:0:0]} 18. Rfe1 {[%emt 0:1:3]} Rb8 {[%emt 0:0:58]} 19. e5 {[%emt 0:1:28]} Qh4 {[%emt 0:1:36]} 20. b3 {[%emt 0:1:55]} Qd4+ {[%emt 0:4:6]} 21. Qxd4 {[%emt 0:0:49]
} cxd4 {[%emt 0:0:3]} 22. Rxd4 {[%emt 0:0:11]} dxe5 {[%emt 0:0:0]} 23. Rd2 {[%emt 0:1:55]} a5 {[%emt 0:0:3]} 24. Nd5 {[%emt 0:2:2]} Rb7 {[%emt 0:3:41]} 25. Re3 {[%emt 0:0:23]} a4 {[%emt 0:0:33]} 26. bxa4 {[%emt 0:0:30]
} Bxd5 {[%emt 0:2:45]} 27. Rxd5 {[%emt 0:0:19]} Rb4 {[%emt 0:0:0]} 28. Rexe5 {[%emt 0:5:40]} Rxe5 {[%emt 0:0:3]} 29. Rxe5 {[%emt 0:0:0]} Rxc4 {[%emt 0:0:2]} 30. a5 {[%emt 0:0:42]} Ra4 {[%emt 0:0:13]} 31. Rc5 {[%emt 0:0:16]} Rxa2 {[%emt 0:0:4]} 32. h4 {[%emt 0:0:2]} h5 {[%emt 0:0:0]} 33. Kh2 {[%emt 0:0:7]} Kf8 {[%emt 0:0:27]} 34. Kg3 {[%emt 0:0:14]} Ra4 {[%emt 0:0:11]} 35. Kh3 {[%emt 0:0:16]} c6 {[%emt 0:0:19]} 36. g3 {[%emt 0:0:0]} Ke7 {[%emt 0:0:11]} 37. Rxc6 {[%emt 0:0:3]} Rxa5 {[%emt 0:0:2]} 38. g4 {[%emt 0:0:12]} 1/2-1/2

[Event "FIDE Chesscom Online Nations Cup"]
[White "Dzagnidze, Nana"]
[Black "Saduakassova, Dinara"]
[Site "Online"]
[Round "5"]
[Annotator "ChessBase"]
[Result "1-0"]
[Date "2020.05.07"]
[WhiteElo "2447"]
[BlackElo "2412"]
[PlyCount "99"]
[TimeControl "1500+10"]

1. Nf3 {[%emt 0:0:1]} Nf6 {[%emt 0:0:6]} 2. c4 {[%emt 0:0:5]} c5 {[%emt 0:0:4]
} 3. Nc3 {[%emt 0:0:7]} Nc6 {[%emt 0:0:2]} 4. g3 {[%emt 0:0:0]} d5 {[%emt 0:0:41]} 5. d4 {[%emt 0:0:3]} e6 {[%emt 0:3:38]} 6. cxd5 {[%emt 0:0:9]
} Nxd5 {[%emt 0:0:19]} 7. Bg2 {[%emt 0:0:5]} cxd4 {[%emt 0:0:0]} 8. Nxd4 {[%emt 0:0:15]} Nxc3 {[%emt 0:0:10]} 9. bxc3 {[%emt 0:0:12]} Nxd4 {[%emt 0:0:40]} 10. Qxd4 {[%emt 0:0:41]} Qxd4 {[%emt 0:0:21]} 11. cxd4 {[%emt 0:0:2]} Bd6 {[%emt 0:0:6]} 12. Bf4 {[%emt 0:2:39]} Ke7 {[%emt 0:0:0]} 13. Bxd6+ {[%emt 0:0:32]} Kxd6 {[%emt 0:0:3]} 14. Kd2 {[%emt 0:1:12]} Rb8 {[%emt 0:1:17]} 15. e4 {[%emt 0:7:23]} b6 {[%emt 0:2:40]} 16. Rhc1 {[%emt 0:2:41]
} Bb7 {[%emt 0:0:35]} 17. Rc3 {[%emt 0:2:9]} Rhc8 {[%emt 0:0:0]} 18. Ra3 {[%emt 0:2:12]} a5 {[%emt 0:2:48]} 19. Rb1 {[%emt 0:0:38]} Ba6 {[%emt 0:1:11]} 20. Rab3 {[%emt 0:0:5]} Kc7 {[%emt 0:0:50]} 21. a4 {[%emt 0:0:49]
} Bc4 {[%emt 0:2:5]} 22. R3b2 {[%emt 0:1:14]} b5 {[%emt 0:0:0]} 23. axb5 {[%emt 0:0:5]} Kb6 {[%emt 0:0:2]} 24. Ra1 {[%emt 0:0:3]} Rc7 {[%emt 0:0:24]} 25. f4 {[%emt 0:1:57]} f6 {[%emt 0:0:46]} 26. Ke3 {[%emt 0:0:24]
} e5 {[%emt 0:0:50]} 27. d5 {[%emt 0:0:48]} Rc5 {[%emt 0:0:14]
} 28. Rc2 {[%emt 0:1:26]} Bxb5 {[%emt 0:0:53]} 29. Rxc5 {[%emt 0:0:4]} Kxc5 {[%emt 0:0:2]} 30. Rxa5 {[%emt 0:0:2]} Kb6 {[%emt 0:0:7]} 31. Ra2 {[%emt 0:0:26]
} Rc8 {[%emt 0:0:31]} 32. Rb2 {[%emt 0:0:3]} Ka5 {[%emt 0:0:0]} 33. fxe5 {[%emt 0:0:47]} fxe5 {[%emt 0:0:2]} 34. Bf3 {[%emt 0:0:7]} g6 {[%emt 0:0:26]} 35. Bg4 {[%emt 0:0:15]} Rc3+ {[%emt 0:0:2]} 36. Kf2 {[%emt 0:0:1]
} h5 {[%emt 0:0:12]} 37. Be2 {[%emt 0:0:13]} Bxe2 {[%emt 0:0:0]} 38. Kxe2 {[%emt 0:0:5]} Rc4 {[%emt 0:0:9]} 39. Kd3 {[%emt 0:0:8]} Rd4+ {[%emt 0:0:2]} 40. Ke3 {[%emt 0:0:1]} Rd1 {[%emt 0:0:1]} 41. Rd2 {[%emt 0:0:13]
} Re1+ {[%emt 0:0:19]} 42. Kf2 {[%emt 0:0:17]} Rc1 {[%emt 0:0:0]} 43. d6 {[%emt 0:0:4]} Rc8 {[%emt 0:0:1]} 44. Rd5+ {[%emt 0:0:17]} Kb6 {[%emt 0:0:2]} 45. Rxe5 {[%emt 0:0:8]} Rf8+ {[%emt 0:0:4]} 46. Ke3 {[%emt 0:0:4]
} Kc6 {[%emt 0:0:1]} 47. Re6 {[%emt 0:0:6]} g5 {[%emt 0:0:0]} 48. e5 {[%emt 0:0:2]} Kd5 {[%emt 0:0:3]} 49. Re7 {[%emt 0:0:1]} g4 {[%emt 0:0:2]
} 50. d7 {[%emt 0:0:4]} 1-0